fUSD/lending_fUSD_20240505
["ID","MTS","AMOUNT","RATE_DAILY","PERIOD"]
[325436621,1714889441378,-1257.28,0.00035616,8]
[325436622,1714889441387,-711.05,0.00035616,8]
[325436623,1714889441397,-500.0,0.00035616,8]
[325436624,1714889441407,-538.61,0.00035616,8]
[325436625,1714889441417,-656.75,0.00035616,8]
[325436626,1714889441428,-684.81,0.00035616,8]
[325436627,1714889441437,-500.0,0.00035616,8]
[325436628,1714889441447,-1776.84,0.00035616,8]
[325436629,1714889441456,-500.0,0.00035616,8]
[325436630,1714889441465,-500.0,0.00035616,8]
[325436631,1714889441474,-1506.2,0.00035616,8]
[325436632,1714889441484,-765.46,0.00035616,8]
[325436633,1714889441493,-862.96,0.00035616,8]
[325436634,1714889441502,-661.57,0.00035616,8]
[325436635,1714889441512,-500.0,0.00035616,8]
[325436636,1714889441522,-500.0,0.00035616,8]
[325436637,1714889441531,-500.0,0.00035616,8]
[325436638,1714889441541,-1556.38,0.00035616,8]
[325436639,1714889441551,-685.23,0.00035616,8]
[325436640,1714889441560,-1122.89,0.00035616,8]
[325436641,1714889441569,-727.07,0.00035616,8]
[325436642,1714889441578,-1055.32,0.00035616,8]
[325436643,1714889441588,-582.56,0.00035616,8]
[325436644,1714889441597,-935.71,0.00035616,8]
[325436645,1714889441607,-500.0,0.00035616,2]
[325436646,1714889441616,-1526.08,0.00035616,8]
[325436647,1714889441625,-668.77,0.00035616,8]
[325436648,1714889441634,-838.99,0.00035616,8]
[325436649,1714889441643,-1529.57,0.00035616,8]
[325436650,1714889441652,-1461.36,0.00035616,8]
[325436651,1714889441662,-960.32,0.00035616,8]
[325436652,1714889441671,-500.0,0.00035616,8]
[325436653,1714889441680,-500.0,0.00035616,2]
[325436654,1714889441689,-1294.31,0.00035616,8]
[325436655,1714889441698,-500.0,0.00035616,8]
[325436656,1714889441709,-1243.59,0.00035616,8]
[325436657,1714889441719,-1173.88,0.00035616,8]
[325436658,1714889441729,-1364.74,0.00035616,8]
[325436659,1714889441738,-500.0,0.00035616,8]
[325436660,1714889441748,-2085.94,0.00035616,8]
[325436661,1714889441757,-2420.76,0.00035616,8]
[325436662,1714889441767,-2001.98,0.00035616,8]
[325436663,1714889441776,-1359.87,0.00035616,8]
[325436664,1714889441785,-816.1,0.00035616,8]
[325436665,1714889441794,-1305.93,0.00035616,8]
[325436666,1714889441803,-712.17,0.00035616,8]
[325436667,1714889441812,-1461.04,0.00035616,8]
[325436668,1714889441821,-1012.64,0.00035616,8]
[325436669,1714889441830,-500.0,0.00035616,8]
[325436670,1714889441840,-927.01,0.00035616,8]
[325436671,1714889441849,-1236.19,0.00035616,8]
[325436672,1714889441858,-500.0,0.00035616,8]
[325436673,1714889441867,-500.0,0.00035616,8]
[325436674,1714889441877,-2367.22,0.00035616,8]
[325436675,1714889441885,-500.0,0.00035616,8]
[325436676,1714889441895,-1540.09,0.00035616,8]
[325436677,1714889441904,-591.02,0.00035616,8]
[325436678,1714889441913,-1649.03,0.00035616,8]
[325436679,1714889441922,-1764.84,0.00035616,8]
[325436680,1714889441932,-807.26,0.00035616,8]
[325436681,1714889441942,-500.0,0.00035616,8]
[325436682,1714889441951,-666.42,0.00035616,8]
[325436683,1714889441960,-500.0,0.00035616,8]
[325436684,1714889441969,-500.0,0.00035616,8]
[325436685,1714889441979,-632.07,0.00035616,8]
[325436686,1714889441989,-1062.82,0.00035616,8]
[325436687,1714889441999,-665.37,0.00035616,8]
[325436688,1714889442010,-883.65,0.00035616,8]
[325436689,1714889442020,-500.0,0.00035616,8]
[325436690,1714889442031,-500.0,0.00035616,8]
[325436691,1714889442040,-253.66731627,0.00035616,8]
[325436692,1714889442050,-500.0,0.00035616,8]
[325436693,1714889442060,-500.0,0.00035616,8]
[325436694,1714889442070,-1800.45,0.00035616,8]
[325436695,1714889442079,-1980.7,0.00035616,8]
[325436696,1714889442089,-1029.77,0.00035616,8]
[325436697,1714889442098,-644.04,0.00035616,8]
[325436698,1714889442108,-2863.98,0.00035616,8]
[325436699,1714889442117,-710.3,0.00035616,8]
[325436700,1714889442127,-943.03,0.00035616,7]
[325436701,1714889442144,-1089.86,0.00035616,8]
[325436702,1714889442153,-500.0,0.00035616,8]
[325436703,1714889442162,-540.94252642,0.00035616,8]
[325436704,1714889442172,-500.0,0.00035616,8]
[325436705,1714889442182,-500.0,0.00035616,8]
[325436706,1714889442192,-853.53,0.00035616,8]
[325436707,1714889442201,-1003.66,0.00035616,8]
[325436708,1714889442211,-638.97580715,0.00035616,8]
[325436709,1714889442220,-500.0,0.00035616,8]
[325436710,1714889442230,-549.64,0.00035616,8]
[325436711,1714889442240,-500.0,0.00035616,8]
[325436712,1714889442249,-500.0,0.00035616,8]
[325436713,1714889442259,-2846.55,0.00035616,8]
[325436714,1714889442268,-1035.98,0.00035616,8]
[325436715,1714889442277,-500.0,0.00035616,8]
[325436716,1714889442287,-1236.25,0.00035616,8]
[325436717,1714889442296,-500.0,0.00035616,8]
[325436718,1714889442306,-841.45,0.00035616,8]
[325436719,1714889442316,-500.0,0.00035616,8]
[325436720,1714889442329,-649.53,0.00035616,8]
[325436722,1714889442338,-500.0,0.00035616,8]
[325436724,1714889442347,-1300.26,0.00035616,8]
[325436726,1714889442356,-971.62,0.00035616,8]
[325436728,1714889442367,-569.9,0.00035616,8]
[325436730,1714889442376,-2228.88,0.00035616,8]
[325436732,1714889442386,-1137.25,0.00035616,8]
[325436734,1714889442396,-591.68,0.00035616,8]
[325436735,1714889442405,-1632.58,0.00035616,8]
[325436736,1714889442415,-500.0,0.00035616,8]
[325436737,1714889442424,-768.88,0.00035616,8]
[325436738,1714889442433,-500.0,0.00035616,8]
[325436739,1714889442443,-500.0,0.00035616,8]
[325436740,1714889442452,-500.0,0.00035616,8]
[325436741,1714889442462,-791.63,0.00035616,8]
[325436742,1714889442471,-363.33111782,0.00035616,8]
[325436749,1714889443032,-537.14888218,0.00035616,8]
[325436750,1714889443043,-664.84,0.00035616,8]
[325436751,1714889443054,-500.0,0.00035616,8]
[325436752,1714889443064,-2091.99738133,0.00035616,8]
[325436753,1714889443154,-120.67261867,0.00035616,8]
[325436754,1714889443163,-500.0,0.00035616,8]
[325436755,1714889443172,-374.34876674,0.00035616,8]
[325436774,1714889443860,-150.0,0.00033156,2]
[325436775,1714889443870,-150.0,0.0003354,2]
[325436776,1714889443879,-150.0,0.00034007,2]
[325436777,1714889443888,-150.0,0.00034062,2]
[325436778,1714889443897,-150.0,0.00034185,2]
[325436779,1714889443907,-150.0,0.00034431,2]
[325436780,1714889443916,-150.0,0.0003533,2]
[325436781,1714889443925,-150.0,0.00035363,2]
[325436782,1714889443935,-355.12123326,0.00035616,8]
[325436783,1714889443944,-360.28906791,0.00035616,8]
[325436784,1714889444477,-332.64574999,0.0001226,2]
[325436785,1714889444520,-1335.21562601,0.0001226,2]
[325436786,1714889444530,-682.14093209,0.00035616,8]
[325436787,1714889444539,-1604.86,0.00035616,8]
[325436788,1714889444549,-500.0,0.00035616,8]
[325436789,1714889444558,-1581.59,0.00035616,8]
[325436790,1714889444567,-1531.59,0.00035616,8]
[325436791,1714889444576,-862.92,0.00035616,8]
[325436792,1714889444586,-1112.59,0.00035616,8]
[325436793,1714889444595,-1506.04,0.00035616,8]
[325436794,1714889444604,-528.19,0.00035616,8]
[325436795,1714889444613,-634.0655919,0.00035616,8]
[325436796,1714889444892,-797.6844081,0.00035616,8]
[325436797,1714889444902,-423.0506053,0.00035616,8]
[325436798,1714889444911,-549.8,0.00035616,8]
[325436799,1714889444921,-1705.98,0.00035616,8]
[325436800,1714889444931,-747.5,0.00035616,8]
[325436801,1714889444940,-652.99,0.00035616,8]
[325436802,1714889444950,-500.0,0.00035616,8]
[325436803,1714889444960,-606.82,0.00035616,8]
[325436804,1714889444969,-734.69,0.00035616,8]
[325436805,1714889444978,-559.16,0.00035616,8]
[325436806,1714889444988,-617.69,0.00035616,8]
[325436807,1714889444997,-1641.95,0.00035616,8]
[325436808,1714889445006,-2022.55,0.00035616,8]
[325436809,1714889445015,-500.0,0.00035616,8]
[325436810,1714889445025,-500.0,0.00035616,8]
[325436811,1714889445034,-1073.83,0.00035616,8]
[325436812,1714889445043,-1204.42,0.00035616,8]
[325436813,1714889445053,-1032.71,0.00035616,8]
[325436814,1714889445063,-1381.39,0.00035616,8]
[325436815,1714889445072,-500.0,0.00035616,8]
[325436816,1714889445081,-500.0,0.00035616,8]
[325436817,1714889445091,-1559.07,0.00035616,8]
[325436818,1714889445100,-856.15,0.00035616,8]
[325436819,1714889445110,-353.83847767,0.00035616,8]
[325436820,1714889446435,-1065.13525705,0.00017259,2]
[325436821,1714889446445,-150.0,0.00033418,2]
[325436822,1714889446455,-150.0,0.00033811,2]
[325436823,1714889446464,-150.0,0.00034271,2]
[325436824,1714889446474,-150.0,0.00034425,2]
[325436825,1714889446483,-150.0,0.00034989,2]
[325436826,1714889446493,-150.0,0.00035553,2]
[325436827,1714889446502,-296.94792418,0.00035616,8]
[325436828,1714889446518,-603.91359815,0.00035616,8]
[325436829,1714889446527,-264.52656963,0.00035616,8]
[325436830,1714889446547,-2504.73343037,0.00035616,8]
[325436831,1714889446556,-1839.85,0.00035616,8]
[325436832,1714889446566,-500.0,0.00035616,8]
[325436833,1714889446575,-286.7691177,0.00035616,8]
[325436834,1714889446584,-1142.66,0.00035616,8]
[325436835,1714889446594,-1029.38,0.00035616,8]
[325436836,1714889446604,-896.69,0.00035616,8]
[325436837,1714889446614,-500.0,0.00035616,8]
[325436838,1714889446623,-1989.24,0.00035616,8]
[325436839,1714889446633,-1495.68,0.00035616,8]
[325436840,1714889446642,-1626.84,0.00035616,8]
[325436841,1714889446652,-1977.67,0.00035616,8]
[325436842,1714889446661,-500.0,0.00035616,8]
[325436843,1714889446671,-514.96,0.00035616,8]
[325436844,1714889446679,-507.05,0.00035616,8]
[325436845,1714889446689,-364.03177113,0.00035616,8]
[325436846,1714889446698,-1160.39,0.00035616,8]
[325436847,1714889446707,-665.01,0.00035616,8]
[325436848,1714889446716,-2596.72,0.00035616,8]
[325436849,1714889446725,-621.32,0.00035616,8]
[325436850,1714889446734,-781.95,0.00035616,8]
[325436851,1714889446744,-874.04,0.00035616,8]
[325436852,1714889446753,-2114.51,0.00035616,8]
[325436853,1714889446762,-500.0,0.00035616,8]
[325436854,1714889446771,-500.0,0.00035616,8]
[325436855,1714889446780,-1071.55,0.00035616,8]
[325436856,1714889446790,-500.0,0.00035616,8]
[325436857,1714889446799,-1102.61,0.00035616,8]
[325436858,1714889446808,-594.27771673,0.00035616,8]
[325436859,1714889446818,-872.73,0.00035616,8]
[325436860,1714889446827,-1412.13,0.00035616,8]
[325436861,1714889446836,-913.7,0.00035616,8]
[325436862,1714889446846,-819.78,0.00035616,8]
[325436863,1714889446855,-1183.74,0.00035616,8]
[325436864,1714889446865,-685.39,0.00035616,8]
[325436865,1714889446875,-501.88,0.00035616,8]
[325436866,1714889446884,-1519.25,0.00035616,8]
[325436867,1714889446893,-500.0,0.00035616,8]
[325436868,1714889446903,-562.64,0.00035616,8]
[325436869,1714889446912,-723.32,0.00035616,8]
[325436870,1714889446921,-500.0,0.00035616,8]
[325436871,1714889446931,-500.0,0.00035616,8]
[325436872,1714889446941,-600.99,0.00035616,8]
[325436873,1714889446950,-500.0,0.00035616,8]
[325436874,1714889446960,-581.91,0.00035616,8]
[325436875,1714889446969,-519.67,0.00035616,8]
[325436876,1714889446979,-797.08,0.00035616,8]
[325436877,1714889446989,-1106.5,0.00035616,8]
[325436878,1714889446999,-415.41161665,0.00035616,8]
[325436881,1714889800550,150.0,0.0003,120]
[325436889,1714890631696,-267.83236721,0.00012823,2]
[325436890,1714890631706,-553.53404025,0.00012824,2]
[325436891,1714890632199,-228.19035272,0.00012824,2]
[325436892,1714890632208,-1096.57315884,0.00012824,2]
[325436893,1714890632222,-620.0,0.00012824,2]
[325436894,1714890632233,-1538.34618246,0.00012824,2]
[325436895,1714890632245,-571.61940899,0.00012824,2]
[325436896,1714890632256,-764.03790892,0.00012824,2]
[325436897,1714890632402,-2913.96726189,0.00012824,2]
[325436898,1714890632412,-3075.87418959,0.00012827,2]
[325436900,1714890632421,-11619.48423629,0.00012928,2]
[325436901,1714890632431,-188.62918423,0.00017258,2]
[325436902,1714890632441,-6954.37877292,0.00019,5]
[325436912,1714890638100,-571.01966468,0.00019,5]
[325436913,1714890638114,-473.64023874,0.00019,5]
[325436914,1714890638174,-5054.34735359,0.00019,5]
[325436915,1714890638184,-1822.0,0.000205,2]
[325436916,1714890638193,-156.47,0.00021644,2]
[325436917,1714890638203,-200.0,0.00027397,2]
[325436918,1714890638213,-810.17359739,0.00027923,2]
[325436919,1714890638222,-410.02645139,0.0003,4]
[325436920,1714890638232,-179.83112748,0.0003,2]
[325436921,1714890638242,-11356.84934356,0.0003,2]
[325436922,1714890638254,-1152.62062948,0.0003,2]
[325436927,1714890640552,-10.53002696,0.0003,2]
[325436928,1714890640562,-1585.4369986,0.0003,4]
[325436929,1714890640574,-309.91500001,0.0003,4]
[325436930,1714890640634,-392.58531307,0.0003,4]
[325436935,1714890642982,-611.98425027,0.0003,4]
[325436936,1714890643087,-519.476,0.0003,4]
[325436986,1714890646049,-1755.3613183,0.0003,4]
[325436988,1714890646059,-288.72057434,0.0003,4]
[325436990,1714890646069,-155.62056273,0.0003,4]
[325436992,1714890646079,-200.69622464,0.00030137,2]
[325436994,1714890646089,-155.3524418,0.00030892,7]
[325436996,1714890646099,-161.60865507,0.00031416,7]
[325436998,1714890646108,-164.02,0.00031626,15]
[325437000,1714890646118,-159.86,0.00031678,120]
[325437002,1714890646129,-820.90076459,0.00031786,2]
[325437015,1714891279392,336.05,0.00026131,120]
[325437016,1714891279748,336.05,0.00029035,120]
[325437020,1714891646634,-547.35752792,0.0003,30]
[325437021,1714891646662,-336.05,0.00031938,120]
[325437022,1714891646689,-7849.33031277,0.00033833,30]
[325437023,1714891646718,-336.05,0.00034842,120]
[325437024,1714891646746,-167.050515,0.00035498,38]
[325437025,1714891646774,-300.07857715,0.00035614,30]
[325437026,1714891646842,-4000.0,0.00035616,30]
[325437027,1714891646881,-1206.50376543,0.00035616,30]
[325437028,1714891646908,-1206.50376543,0.00035781,30]
[325437029,1714891646972,-4000.0,0.0003589,30]
[325437030,1714891647010,-1206.50376543,0.00035918,30]
[325437031,1714891647049,-500.0,0.00036,120]
[325437032,1714891647076,-1206.50376543,0.00036055,30]
[325437033,1714891647151,-4000.0,0.00036164,30]
[325437034,1714891647188,-1206.50376543,0.00036219,30]
[325437035,1714891647214,-1206.50376543,0.00036356,30]
[325437036,1714891647284,-4000.0,0.00036438,30]
[325437037,1714891647323,-1206.50376543,0.00036521,30]
[325437038,1714891647350,-1206.50376543,0.00036658,30]
[325437039,1714891647414,-4000.0,0.00036712,30]
[325437040,1714891647451,-1206.50376543,0.00036795,30]
[325437041,1714891647477,-1206.50376543,0.00036959,30]
[325437042,1714891647545,-4000.0,0.00036986,30]
[325437043,1714891647582,-2015.0,0.00037,60]
[325437044,1714891647609,-1206.50376543,0.00037096,30]
[325437045,1714891647686,-4000.0,0.0003726,30]
[325437046,1714891647728,-197.73205903,0.00037479,30]
[325437047,1714891648128,-4000.0,0.00037534,30]
[325437048,1714891648199,-4000.0,0.00037808,30]
[325437049,1714891648236,-120601.83838401,0.00038,90]
[325437050,1714891648260,-1500.0,0.00038,30]
[325437051,1714891648283,-1000.0,0.00038,120]
[325437052,1714891648307,-8690.79544161,0.00038,30]
[325437053,1714891648366,-4000.0,0.00038082,30]
[325437054,1714891648401,-1477.0,0.000381,30]
[325437055,1714891648428,-12191.2994099,0.00038316,120]
[325437056,1714891648468,-2000.0,0.00038356,120]
[325437057,1714891648493,-2000.0,0.00038356,120]
[325437058,1714891648518,-2000.0,0.00038356,120]
[325437059,1714891648542,-330.27069314,0.00038356,120]
[325437060,1714891648584,-4000.0,0.00038356,30]
[325437061,1714891648618,-1000.0,0.00038356,30]
[325437062,1714891648642,-1000.0,0.00038356,30]
[325437063,1714891648666,-2000.0,0.00038484,30]
[325437064,1714891648689,-1500.0,0.000385,120]
[325437065,1714891648743,-4000.0,0.0003863,30]
[325437066,1714891648808,-4000.0,0.00038904,30]
[325437067,1714891648840,-1000.0,0.00038995,30]
[325437068,1714891648865,-372.37940711,0.00039,30]
[325437069,1714891648888,-1429.0,0.00039,120]
[325437070,1714891648944,-4000.0,0.00039178,30]
[325437071,1714891649018,-4000.0,0.00039452,30]
[325437072,1714891649063,-159.86,0.00039597,120]
[325437073,1714891649092,-177.49612539,0.000396,120]
[325437074,1714891649119,-1000.0,0.00039635,30]
[325437075,1714891649145,-167.61604012,0.00039726,30]
[325437076,1714891649171,-6742.96470361,0.00039726,30]
[325437077,1714891649197,-500.0,0.00039726,30]
[325437078,1714891649222,-2000.0,0.00039726,30]
[325437079,1714891649252,-2000.0,0.00039726,30]
[325437080,1714891649314,-4000.0,0.00039726,30]
[325437081,1714891649357,-2512.92647958,0.00039784,31]
[325437082,1714891649382,-5039.16,0.000398,30]
[325437083,1714891649406,-196.26286283,0.000398,60]
[325437084,1714891649431,-762.73289209,0.0003987,30]
[325437085,1714891649458,-298.85859398,0.0004,90]
[325437086,1714891649485,-202.48919552,0.0004,30]
[325437087,1714891649513,-400.16293713,0.0004,30]
[325437088,1714891649542,-943.450313,0.0004,41]
[325437089,1714891649566,-328.0,0.0004,30]
[325437090,1714891649590,-912.3537809,0.0004,120]
[325437091,1714891649617,-1000.0,0.0004,120]
[325437092,1714891649641,-1148.29988336,0.0004,30]
[325437093,1714891649666,-2393.2677101,0.0004,30]
[325437094,1714891649691,-950.0,0.0004,120]
[325437095,1714891649715,-200.47629416,0.0004,30]
[325437096,1714891649740,-1345.98,0.0004,120]
[325437097,1714891649774,-336.04,0.0004,120]
[325437098,1714891649799,-518.38,0.0004,120]
[325437099,1714891649849,-4000.0,0.0004,30]
[325437100,1714891649875,-9666.85877316,0.0004,30]
[325437101,1714891649907,-294.41276759,0.0004001,30]
[325437102,1714891649931,-1247.80384764,0.00040258,40]
[325437103,1714891649955,-199.18973642,0.00040258,40]
[325437104,1714891649978,-198.57858805,0.00040258,40]
[325437105,1714891650006,-203.69709454,0.00040258,40]
[325437106,1714891650030,-296.76847827,0.00040258,35]
[325437107,1714891650055,-3791.6063904,0.00040258,40]
[325437108,1714891650110,-1638.11035503,0.00040273,30]
[325437109,1714891650143,-1000.0,0.00040274,30]
[325437110,1714891650166,-158.43315544,0.00040362,30]
[325437111,1714891650190,-2216.5,0.00040396,79]
[325437112,1714891650220,-158.32485788,0.00040399,30]
[325437113,1714891650247,-438.4293292,0.0004046,60]
[325437114,1714891650323,-155.29471218,0.00040559,30]
[325437115,1714891650352,-168.22068823,0.0004079,30]
[325437116,1714891650425,-338.36930805,0.000409,60]
[325437117,1714891650453,-1000.0,0.00040913,30]
[325437118,1714891650479,-156.49229514,0.00040934,30]
[325437119,1714891650507,-3148.0,0.0004095,30]
[325437120,1714891650532,-155.99402394,0.00040971,30]
[325437121,1714891650559,-2000.0,0.00040987,45]
[325437122,1714891650584,-3000.0,0.00041,30]
[325437123,1714891650610,-1000000.0,0.00041,35]
[325437124,1714891650636,-199.80908878,0.00041,60]
[325437125,1714891650661,-1742.92476031,0.00041,60]
[325437126,1714891650687,-900.0,0.00041,42]
[325437127,1714891650712,-300.0,0.00041,30]
[325437128,1714891650739,-907.09938641,0.00041,120]
[325437129,1714891650764,-150.0,0.00041,30]
[325437130,1714891651100,-1000.0,0.00041094,120]
[325437131,1714891651159,-1040.764659,0.00041096,60]
[325437132,1714891651184,-3159.16085673,0.000412,30]
[325437133,1714891651207,-152.36595391,0.00041216,38]
[325437134,1714891651232,-268.3,0.00041303,30]
[325437135,1714891651257,-2073.897766,0.0004134,30]
[325437136,1714891651295,-2000.0,0.00041369,30]
[325437137,1714891651338,-268.3,0.00041473,30]
[325437138,1714891651362,-5453.0,0.000415,120]
[325437139,1714891651389,-285.54716238,0.000415,33]
[325437140,1714891651412,-150.0,0.000415,31]
[325437141,1714891651436,-2000.0,0.00041506,31]
[325437142,1714891651460,-1000.0,0.00041553,30]
[325437143,1714891651483,-1047.74676846,0.00041643,30]
[325437144,1714891651508,-215.1575341,0.00041643,30]
[325437145,1714891651531,-567.03,0.00041643,30]
[325437146,1714891651555,-500.0,0.00041643,30]
[325437147,1714891651578,-716.35,0.00041643,30]
[325437148,1714891651601,-1056.67,0.00041643,30]
[325437149,1714891651624,-1202.42,0.00041643,30]
[325437150,1714891651648,-785.62,0.00041643,30]
[325437151,1714891651672,-500.0,0.00041643,30]
[325437152,1714891651696,-596.51,0.00041643,30]
[325437153,1714891651719,-704.08,0.00041643,30]
[325437154,1714891651743,-1060.4,0.00041643,30]
[325437155,1714891651767,-998.99,0.00041643,30]
[325437156,1714891651791,-1433.36,0.00041643,30]
[325437157,1714891651814,-867.0,0.00041643,30]
[325437158,1714891651839,-1254.6,0.00041643,30]
[325437159,1714891651865,-570.76,0.00041643,30]
[325437160,1714891651890,-581.54,0.00041643,30]
[325437161,1714891651914,-1247.71,0.00041643,30]
[325437162,1714891651939,-566.14,0.00041643,30]
[325437163,1714891651963,-543.38848468,0.00041643,30]
[325437164,1714891651986,-539.2,0.00041643,30]
[325437165,1714891652015,-761.27,0.00041643,30]
[325437166,1714891652040,-637.3,0.00041643,30]
[325437167,1714891652066,-1466.88,0.00041643,30]
[325437168,1714891652092,-1247.5,0.00041643,30]
[325437169,1714891652116,-875.63,0.00041643,30]
[325437170,1714891652140,-624.67,0.00041643,30]
[325437171,1714891652164,-908.92,0.00041643,30]
[325437172,1714891652187,-1267.45,0.00041643,30]
[325437173,1714891652211,-1134.41,0.00041643,30]
[325437174,1714891652234,-1221.86,0.00041643,30]
[325437175,1714891652258,-837.62,0.00041643,30]
[325437176,1714891652283,-1174.8,0.00041643,30]
[325437177,1714891652306,-1552.31,0.00041643,30]
[325437178,1714891652329,-1112.04,0.00041643,30]
[325437179,1714891652351,-1339.53,0.00041643,30]
[325437180,1714891652377,-1690.83,0.00041643,30]
[325437181,1714891652403,-656.83,0.00041643,30]
[325437182,1714891652428,-1553.65,0.00041643,30]
[325437183,1714891652453,-790.56,0.00041643,30]
[325437184,1714891652477,-1414.69,0.00041643,30]
[325437185,1714891652502,-531.58,0.00041643,30]
[325437186,1714891652526,-1384.69,0.00041643,30]
[325437187,1714891652550,-506.56,0.00041643,30]
[325437188,1714891652574,-628.5,0.00041643,30]
[325437189,1714891652598,-842.99,0.00041643,30]
[325437190,1714891652622,-557.67,0.00041643,30]
[325437191,1714891652645,-1467.6,0.00041643,30]
[325437192,1714891652670,-635.79,0.00041643,30]
[325437193,1714891652694,-1490.98,0.00041643,30]
[325437194,1714891652719,-565.58,0.00041643,30]
[325437195,1714891652743,-1274.76,0.00041643,30]
[325437196,1714891652768,-1377.04,0.00041643,30]
[325437197,1714891652792,-520.05,0.00041643,30]
[325437198,1714891652815,-636.94,0.00041643,30]
[325437199,1714891652839,-857.39,0.00041643,30]
[325437200,1714891652863,-1476.78,0.00041643,30]
[325437201,1714891652888,-1049.2,0.00041643,30]
[325437202,1714891652912,-927.34,0.00041643,30]
[325437203,1714891652938,-967.59,0.00041643,30]
[325437204,1714891652962,-855.8,0.00041643,30]
[325437205,1714891652986,-599.68,0.00041643,30]
[325437206,1714891653016,-321.91527534,0.00041643,30]
[325437207,1714891653041,-910.9,0.00041643,30]
[325437208,1714891653067,-1048.75,0.00041643,30]
[325437209,1714891653093,-1125.19,0.00041643,30]
[325437210,1714891653118,-1200.74,0.00041643,30]
[325437211,1714891653144,-1672.72,0.00041643,30]
[325437212,1714891653171,-978.17,0.00041643,30]
[325437213,1714891653197,-1253.8,0.00041643,30]
[325437214,1714891653222,-1168.69,0.00041643,30]
[325437215,1714891653246,-1282.98,0.00041643,30]
[325437216,1714891653270,-1147.07,0.00041643,30]
[325437217,1714891653293,-739.8,0.00041643,30]
[325437218,1714891653317,-266.06,0.00041643,30]
[325437219,1714891653343,-1519.48,0.00041643,30]
[325437220,1714891653367,-561.52,0.00041643,30]
[325437221,1714891653390,-818.19,0.00041643,30]
[325437222,1714891653414,-990.37,0.00041643,30]
[325437223,1714891653439,-1073.44,0.00041643,30]
[325437224,1714891653464,-592.06,0.00041643,30]
[325437225,1714891653488,-524.91,0.00041643,30]
[325437226,1714891653514,-915.29,0.00041643,30]
[325437227,1714891653537,-836.64,0.00041643,30]
[325437228,1714891653562,-721.44,0.00041643,30]
[325437229,1714891653588,-1352.7,0.00041643,30]
[325437230,1714891653612,-799.33,0.00041643,30]
[325437231,1714891653636,-981.79,0.00041643,30]
[325437232,1714891653661,-1264.9,0.00041643,30]
[325437233,1714891653899,-1059.35,0.00041643,30]
[325437234,1714891653924,-711.53,0.00041643,30]
[325437235,1714891653948,-658.77,0.00041643,30]
[325437236,1714891653972,-636.09,0.00041643,30]
[325437237,1714891653997,-912.25,0.00041643,30]
[325437238,1714891654025,-913.81,0.00041643,30]
[325437239,1714891654049,-588.95,0.00041643,30]
[325437240,1714891654073,-602.69340224,0.00041643,30]
[325437241,1714891654099,-867.26,0.00041643,30]
[325437242,1714891654123,-1205.18,0.00041643,30]
[325437243,1714891654147,-958.86,0.00041643,30]
[325437244,1714891654171,-1256.07,0.00041643,30]
[325437245,1714891654196,-1453.72,0.00041643,30]
[325437246,1714891654220,-827.56,0.00041643,30]
[325437247,1714891654245,-1045.18,0.00041643,30]
[325437248,1714891654270,-646.69,0.00041643,30]
[325437249,1714891654295,-1110.35,0.00041643,30]
[325437250,1714891654318,-289.42,0.00041643,30]